fUSD/lending_fUSD_20260126
["ID","MTS","AMOUNT","RATE_DAILY","PERIOD"]
[403663315,1769454642253,-1169.0588883,0.0001659,2]
[403663316,1769454642262,-6267.06996004,0.00016671,2]
[403663317,1769454642272,-8697.91006024,0.00016677,2]
[403663318,1769454642282,-166.66,0.00016687,2]
[403663319,1769454642292,-200.0,0.00016694,2]
[403663320,1769454642306,-171.68,0.00016695,2]
[403663321,1769454642316,-242.69,0.00016699,2]
[403663322,1769454642326,-642.94,0.00016704,2]
[403663323,1769454642335,-151.0,0.00016711,2]
[403663324,1769454642347,-181.08010149,0.00016711,2]
[403663325,1769454642356,-209.40437684,0.00016711,2]
[403663326,1769454642366,-500.0,0.00016711,2]
[403663327,1769454642376,-854.2589148,0.00016711,2]
[403663328,1769454642386,-890.0,0.00016712,2]
[403663329,1769454642396,-155.0,0.00016774,2]
[403663330,1769454642405,-1169.0588883,0.00016852,2]
[403663331,1769454642416,-5439.0,0.00016863,2]
[403663332,1769454642426,-166.66,0.00016864,2]
[403663333,1769454642436,-900.0,0.00016866,2]
[403663334,1769454642445,-6267.06996004,0.00016876,2]
[403663337,1769454642460,-8697.91006024,0.00016881,2]
[403663340,1769454642475,-500.0,0.00016884,2]
[403663343,1769454642486,-500.0,0.00016884,2]
[403663345,1769454642496,-500.0,0.00016884,2]
[403663346,1769454642506,-500.0,0.00016884,2]
[403663347,1769454642515,-150.0,0.00016884,2]
[403663349,1769454642525,-500.0,0.00016884,2]
[403663350,1769454642535,-500.0,0.00016884,2]
[403663351,1769454642545,-500.0,0.00016884,2]
[403663353,1769454642555,-500.0,0.00016884,2]
[403663354,1769454642565,-500.0,0.00016884,2]
[403663356,1769454642575,-300.0,0.00016884,2]
[403663357,1769454642585,-161.26653539,0.00016884,2]
[403663358,1769454642594,-500.0,0.00016884,2]
[403663359,1769454642603,-500.0,0.00016884,2]
[403663361,1769454642614,-161.79669812,0.00016884,2]
[403663363,1769454642624,-333.28418579,0.00016884,2]
[403663365,1769454642634,-500.0,0.00016884,2]
[403663366,1769454642644,-573.39128735,0.00016884,2]
[403663367,1769454642653,-500.0,0.00016884,2]
[403663368,1769454642663,-500.0,0.00016884,2]
[403663369,1769454642673,-500.0,0.00016884,2]
[403663370,1769454642683,-500.0,0.00016884,2]
[403663371,1769454642693,-163.26940322,0.00016884,2]
[403663372,1769454642703,-500.0,0.00016884,2]
[403663373,1769454642712,-162.93573151,0.00016884,2]
[403663374,1769454642722,-500.0,0.00016884,2]
[403663375,1769454642731,-500.0,0.00016884,2]
[403663376,1769454642741,-500.0,0.00016884,2]
[403663377,1769454642751,-208.18830285,0.00016884,2]
[403663378,1769454642760,-500.0,0.00016884,2]
[403663379,1769454642770,-500.0,0.00016884,2]
[403663380,1769454642779,-336.04474913,0.00016884,2]
[403663381,1769454642790,-500.0,0.00016884,2]
[403663382,1769454642799,-160.105891,0.00016884,2]
[403663383,1769454642808,-160.05036115,0.00016884,2]
[403663384,1769454643116,-158.12162723,0.00016884,2]
[403663385,1769454643131,-512.34755088,0.00016884,2]
[403663386,1769454643140,-500.0,0.00016884,2]
[403663387,1769454643150,-500.0,0.00016884,2]
[403663388,1769454643159,-500.0,0.00016884,2]
[403663389,1769454643169,-500.0,0.00016884,2]
[403663390,1769454643178,-500.0,0.00016884,2]
[403663391,1769454643188,-500.0,0.00016884,2]
[403663392,1769454643197,-160.00359926,0.00016884,2]
[403663393,1769454643206,-500.0,0.00016884,2]
[403663394,1769454643215,-160.35517843,0.00016884,2]
[403663395,1769454643225,-500.0,0.00016884,2]
[403663396,1769454643234,-500.0,0.00016884,2]
[403663397,1769454643244,-160.03318119,0.00016884,2]
[403663398,1769454643253,-160.10406232,0.00016884,2]
[403663399,1769454643263,-160.09618491,0.00016884,2]
[403663400,1769454643272,-161.02070758,0.00016884,2]
[403663401,1769454643281,-160.10752734,0.00016884,2]
[403663402,1769454643291,-500.0,0.00016884,2]
[403663403,1769454643302,-160.0879285,0.00016884,2]
[403663404,1769454643311,-160.10588668,0.00016884,2]
[403663405,1769454643325,-500.0,0.00016884,2]
[403663406,1769454643335,-160.10504853,0.00016884,2]
[403663407,1769454643344,-160.10409569,0.00016884,2]
[403663408,1769454643354,-160.10568478,0.00016884,2]
[403663409,1769454643363,-500.0,0.00016884,2]
[403663410,1769454643375,-559.01847466,0.00016884,2]
[403663411,1769454643384,-150.92743294,0.00016884,2]
[403663412,1769454643393,-521.69766282,0.00016884,2]
[403663413,1769454643403,-500.0,0.00016884,2]
[403663414,1769454643412,-161.35686202,0.00016884,2]
[403663415,1769454643422,-161.09735774,0.00016884,2]
[403663416,1769454643432,-500.0,0.00016884,2]
[403663417,1769454643442,-500.0,0.00016884,2]
[403663418,1769454643451,-376.42478585,0.00016884,2]
[403663419,1769454643460,-500.0,0.00016884,2]
[403663420,1769454643470,-500.0,0.00016884,2]
[403663421,1769454643479,-164.62413904,0.00016884,2]
[403663422,1769454643488,-167.838992,0.00016884,2]
[403663423,1769454643498,-471.11609188,0.00016884,2]
[403663424,1769454643507,-500.0,0.00016884,2]
[403663425,1769454643520,-500.0,0.00016884,2]
[403663426,1769454643530,-169.57046626,0.00016884,2]
[403663427,1769454643539,-161.30149315,0.00016884,2]
[403663428,1769454643549,-500.0,0.00016884,2]
[403663429,1769454643558,-162.53079181,0.00016884,2]
[403663430,1769454643567,-161.96822861,0.00016884,2]
[403663431,1769454643576,-163.15888102,0.00016884,2]
[403663432,1769454643586,-500.0,0.00016884,2]
[403663433,1769454643595,-500.0,0.00016884,2]
[403663434,1769454643604,-500.0,0.00016884,2]
[403663435,1769454643614,-500.0,0.00016884,2]
[403663436,1769454643623,-500.0,0.00016884,2]
[403663437,1769454643633,-180.11638707,0.00016884,2]
[403663438,1769454643643,-511.9238305,0.00016884,2]
[403663439,1769454643652,-500.0,0.00016884,2]
[403663440,1769454643661,-500.0,0.00016884,2]
[403663441,1769454643671,-500.0,0.00016884,2]
[403663442,1769454643680,-165.77830412,0.00016884,2]
[403663443,1769454643690,-166.49490539,0.00016884,2]
[403663444,1769454643700,-500.0,0.00016884,2]
[403663445,1769454643710,-309.0024886,0.00016884,2]
[403663446,1769454643721,-485.73612495,0.00016884,2]
[403663447,1769454643731,-500.0,0.00016884,2]
[403663448,1769454643740,-500.0,0.00016884,2]
[403663449,1769454643749,-500.0,0.00016884,2]
[403663450,1769454643759,-500.0,0.00016884,2]
[403663451,1769454643770,-284.17906244,0.00016884,2]
[403663452,1769454643779,-208.64053096,0.00016884,2]
[403663453,1769454643789,-500.59346825,0.00016884,2]
[403663454,1769454643799,-500.0,0.00016884,2]
[403663455,1769454643809,-500.0,0.00016884,2]
[403663456,1769454643819,-500.0,0.00016884,2]
[403663457,1769454643830,-509.00464684,0.00016884,2]
[403663458,1769454643841,-500.0,0.00016884,2]
[403663459,1769454643851,-600.0,0.000169,6]
[403663460,1769454643861,-246.72636578,0.000169,2]
[403663461,1769454643872,-246.72636576,0.000169,2]
[403663462,1769454643882,-246.72636576,0.000169,2]
[403663463,1769454643892,-890.0,0.00016986,2]
[403663464,1769454643902,-18834.49476335,0.00017,2]
[403663465,1769454643912,-250.0,0.00017,2]
[403663466,1769454643924,-854.9650287,0.00017001,2]
[403663467,1769454643943,-2256.26623761,0.00017001,2]
[403663468,1769454643952,-3980.32108693,0.00017001,2]
[403663469,1769454643962,-5954.32229868,0.00017001,2]
[403663470,1769454643972,-8056.4022,0.00017001,2]
[403663471,1769454643981,-610.0,0.0001701,2]
[403663472,1769454643991,-166.66,0.00017017,2]
[403663473,1769454644006,-250.0,0.00017059,2]
[403663474,1769454644026,-6267.06996004,0.0001708,2]
[403663475,1769454644041,-8697.91006024,0.00017085,2]
[403663476,1769454644051,-159.98,0.00017112,2]
[403663477,1769454644060,-1169.0588883,0.00017114,2]
[403663478,1769454644070,-2798.33,0.00017117,2]
[403663479,1769454644080,-294.37,0.00017117,2]
[403663480,1769454644090,-483.70920103,0.00017119,2]
[403663481,1769454644099,-446.04265821,0.00017138,2]
[403663482,1769454644108,-610.0,0.00017144,2]
[403663483,1769454644117,-610.0,0.00017155,2]
[403663484,1769454644127,-500.0,0.00017173,2]
[403663485,1769454644136,-155.0,0.00017183,2]
[403663486,1769454644146,-666.72878,0.00017252,2]
[403663487,1769454644155,-151.0,0.00017259,2]
[403663488,1769454644164,-187.78006525,0.00017259,2]
[403663489,1769454644173,-337.8475445,0.00017259,2]
[403663490,1769454644183,-500.0,0.00017259,2]
[403663491,1769454644192,-885.86649465,0.00017259,2]
[403663492,1769454644202,-890.0,0.0001726,2]
[403663493,1769454644211,-159.18817302,0.00017277,2]
[403663494,1769454644222,-6267.06996004,0.00017285,2]
[403663495,1769454644231,-8697.91006024,0.00017289,2]
[403663496,1769454644241,-1929.6,0.000173,2]
[403663498,1769454644253,-1874.78,0.00017321,2]
[403663500,1769454644262,-502.1396467,0.00017332,2]
[403663502,1769454644272,-5268.17964723,0.00017332,2]
[403663504,1769454644282,-166.66,0.00017348,2]
[403663505,1769454644292,-1874.78,0.00017349,2]
[403663506,1769454644305,-610.0,0.00017357,2]
[403663507,1769454644315,-856.0,0.0001736,2]
[403663508,1769454644324,-610.0,0.00017365,2]
[403663509,1769454644333,-1874.78,0.00017376,2]
[403663510,1769454644343,-1169.0588883,0.00017376,2]
[403663511,1769454644352,-514.99,0.000174,2]
[403663513,1769454644362,-1200.0,0.000174,6]
[403663515,1769454644371,-1874.78,0.00017403,2]
[403663517,1769454644385,-1000.0,0.00017413,2]
[403663519,1769454644395,-1874.78,0.00017431,2]
[403663520,1769454644404,-1000.0,0.00017432,2]
[403663521,1769454644413,-1000.0,0.00017432,2]
[403663522,1769454644423,-613.35697276,0.00017432,2]
[403663523,1769454644434,-275.87290132,0.00017432,2]
[403663524,1769454644444,-150.2937682,0.00017432,2]
[403663525,1769454644453,-1000.0,0.00017432,2]
[403663526,1769454644463,-1000.0,0.00017432,2]
[403663527,1769454644472,-1000.0,0.00017432,2]
[403663528,1769454644481,-700.3059212,0.00017432,2]
[403663529,1769454644490,-463.18396516,0.00017432,2]
[403663530,1769454644500,-600.26267219,0.00017432,2]
[403663531,1769454644509,-1000.0,0.00017432,2]
[403663532,1769454644518,-1000.0,0.00017432,2]
[403663533,1769454644527,-483.90534832,0.00017432,2]
[403663534,1769454644536,-1000.27422086,0.00017432,2]
[403663535,1769454644545,-1000.0,0.00017432,2]
[403663536,1769454644555,-1000.0,0.00017432,2]
[403663537,1769454644564,-749.2094095,0.00017432,2]
[403663538,1769454644573,-792.30789436,0.00017432,2]
[403663539,1769454644582,-1000.0,0.00017432,2]
[403663540,1769454644592,-1000.0,0.00017432,2]
[403663541,1769454644601,-375.25011324,0.00017432,2]
[403663542,1769454644610,-172.17559996,0.00017432,2]
[403663543,1769454644619,-672.85721293,0.00017432,2]
[403663544,1769454644628,-1000.50836351,0.00017432,2]
[403663545,1769454644637,-1000.0,0.00017432,2]
[403663546,1769454644647,-826.19937569,0.00017432,2]
[403663547,1769454644656,-1000.0,0.00017432,2]
[403663548,1769454644666,-1000.91009756,0.00017432,2]
[403663549,1769454644675,-1000.0,0.00017432,2]
[403663550,1769454644684,-698.8665229,0.00017432,2]
[403663551,1769454644693,-1000.0,0.00017432,2]
[403663552,1769454644703,-1000.0,0.00017432,2]
[403663553,1769454644712,-1000.0,0.00017432,2]
[403663554,1769454644721,-1000.0,0.00017432,2]
[403663555,1769454644731,-1084.53861149,0.00017432,2]
[403663556,1769454644740,-1000.0,0.00017432,2]
[403663557,1769454644749,-597.46779081,0.00017432,2]
[403663558,1769454644759,-1000.0,0.00017432,2]
[403663559,1769454644768,-1000.0,0.00017432,2]
[403663560,1769454644777,-1000.0,0.00017432,2]
[403663561,1769454644786,-1000.37494334,0.00017432,2]
[403663562,1769454644796,-1075.19044869,0.00017432,2]
[403663563,1769454644805,-1000.0,0.00017432,2]
[403663564,1769454644815,-1000.71345876,0.00017432,2]
[403663565,1769454644824,-1000.0,0.00017432,2]
[403663567,1769454644834,-1000.0,0.00017432,2]
[403663569,1769454644844,-1000.92344922,0.00017432,2]
[403663571,1769454644854,-1000.0,0.00017432,2]
[403663572,1769454644863,-500.55962396,0.00017432,2]
[403663573,1769454644873,-1000.88574824,0.00017432,2]
[403663574,1769454644883,-868.30615195,0.00017432,2]
[403663575,1769454644892,-1000.0,0.00017432,2]
[403663576,1769454644902,-1000.0,0.00017432,2]
[403663577,1769454644911,-1000.0,0.00017432,2]
[403663578,1769454644920,-557.85157046,0.00017432,2]
[403663579,1769454644930,-1000.0,0.00017432,2]
[403663581,1769454644939,-666.87439448,0.00017432,2]
[403663582,1769454644948,-184.66761721,0.00017432,2]
[403663583,1769454644958,-1000.62809679,0.00017432,2]
[403663585,1769454644968,-1000.63653282,0.00017432,2]
[403663587,1769454644977,-1000.0,0.00017432,2]
[403663589,1769454644986,-610.0,0.00017451,2]
[403663591,1769454644995,-1874.78,0.00017458,2]
[403663593,1769454645005,-307.45601862,0.00017482,2]
[403663595,1769454645014,-1874.78,0.00017485,2]
[403663597,1769454645028,-6267.06996004,0.0001749,2]
[403663598,1769454645038,-8697.91006024,0.00017492,2]
[403663599,1769454645047,-250.0,0.00017497,2]
[403663600,1769454645057,-1800.0,0.000175,6]
[403663601,1769454645066,-1874.78,0.00017513,2]
[403663602,1769454645075,-334.5472959,0.00017532,2]
[403663603,1769454645084,-890.0,0.00017534,2]
[403663604,1769454645094,-1874.78,0.0001754,2]
[403663605,1769454645110,-420.0,0.00017563,2]
[403663606,1769454645121,-420.0,0.00017563,2]
[403663607,1769454645131,-1874.78,0.00017567,2]
[403663608,1769454645141,-218.05616184,0.0001757,2]
[403663609,1769454645150,-195.0,0.00017588,2]
[403663610,1769454645159,-155.0,0.00017592,2]
[403663611,1769454645169,-1874.78,0.00017595,2]
[403663612,1769454645178,-2400.0,0.000176,6]
[403663613,1769454645188,-500.0,0.00017621,2]
[403663614,1769454645197,-1874.78,0.00017622,2]
[403663615,1769454645207,-1169.0588883,0.00017638,2]
[403663616,1769454645217,-1874.78,0.00017649,2]
[403663617,1769454645227,-1680.0,0.00017651,2]
[403663618,1769454645238,-218.05616184,0.00017653,2]
[403663619,1769454645247,-195.0,0.00017658,2]
[403663620,1769454645256,-613.06,0.00017662,2]
[403663621,1769454645267,-200.0,0.00017673,2]
[403663622,1769454645277,-208.68914964,0.00017673,2]
[403663623,1769454645288,-1874.78,0.00017677,2]
[403663624,1769454645303,-1204.0,0.00017689,2]
[403663625,1769454645313,-916.0,0.00017689,2]
[403663626,1769454645323,-567.0,0.00017689,2]
[403663627,1769454645335,-2442.0,0.00017689,2]
[403663628,1769454645344,-6570.0,0.00017689,2]
[403663629,1769454645353,-610.0,0.00017695,2]
[403663630,1769454645364,-6267.06996004,0.00017695,2]
[403663631,1769454645374,-8697.91006024,0.00017696,2]
[403663632,1769454645384,-151.4199,0.000177,2]
[403663633,1769454645395,-3100.0,0.000177,6]
[403663634,1769454645405,-1874.78,0.00017704,2]
[403663635,1769454645415,-610.0,0.00017726,2]
[403663636,1769454645426,-150.99,0.00017728,2]
[403663637,1769454645435,-9999.99,0.00017728,2]
[403663638,1769454645445,-1874.78,0.00017731,2]
[403663639,1769454645455,-218.05616184,0.00017735,2]
[403663640,1769454645465,-166.66,0.00017743,2]
[403663641,1769454645476,-999.0,0.00017748,3]
[403663642,1769454645487,-1874.78,0.00017759,2]
[403663643,1769454645496,-867.98,0.00017768,2]
[403663644,1769454645506,-300.0,0.0001778,2]
[403663645,1769454645515,-200.0,0.0001778,2]
[403663646,1769454645525,-200.0,0.0001778,2]
[403663647,1769454645534,-200.0,0.0001778,2]
[403663648,1769454645544,-195.0,0.0001778,2]
[403663649,1769454645554,-1874.78,0.00017786,2]
[403663650,1769454645563,-600.0,0.000178,6]
[403663651,1769454645572,-463.11985608,0.000178,2]
[403663652,1769454645581,-610.0,0.00017805,2]
[403663653,1769454645591,-151.0,0.00017807,2]
[403663654,1769454645600,-194.72792766,0.00017807,2]
[403663655,1769454645609,-500.0,0.00017807,2]
[403663656,1769454645619,-918.64355495,0.00017807,2]
[403663657,1769454645628,-890.0,0.00017808,2]
[403663658,1769454645639,-151.0,0.00017808,2]
[403663659,1769454645648,-151.0,0.00017808,2]
[403663660,1769454645658,-151.0,0.00017808,2]
[403663661,1769454645668,-151.0,0.00017808,2]
[403663662,1769454645677,-200.0,0.00017808,5]
[403663663,1769454645686,-200.0,0.00017808,5]
[403663664,1769454645696,-200.0,0.00017808,5]
[403663665,1769454645705,-200.0,0.00017808,5]
[403663666,1769454645715,-200.0,0.00017808,5]
[403663667,1769454645724,-200.0,0.00017808,5]
[403663668,1769454645733,-200.0,0.00017808,5]
[403663669,1769454645742,-200.0,0.00017808,5]
[403663670,1769454645752,-200.0,0.00017808,5]
[403663671,1769454645763,-200.0,0.00017808,5]
[403663672,1769454645955,-200.0,0.00017808,5]
[403663673,1769454645965,-300.0,0.00017808,5]
[403663674,1769454645975,-1874.78,0.00017813,2]
[403663675,1769454645984,-218.05616184,0.00017818,2]
[403663676,1769454645993,-1874.78,0.00017841,2]
[403663677,1769454646004,-313.648246,0.00017872,2]
[403663678,1769454646013,-313.648246,0.00017872,2]
[403663679,1769454646022,-313.648246,0.00017872,2]
[403663680,1769454646032,-313.648246,0.00017872,2]
[403663681,1769454646041,-150.0,0.00017872,2]
[403663682,1769454646051,-150.0,0.00017872,2]
[403663683,1769454646060,-615.0,0.00017872,2]
[403663684,1769454646070,-3477.0,0.00017872,2]
[403663685,1769454646079,-1333.0,0.00017872,2]
[403663686,1769454646088,-184.0,0.00017872,2]
[403663687,1769454646097,-1269.0,0.00017872,2]
[403663689,1769454646107,-406.15,0.00017898,2]
[403663690,1769454646116,-1169.0588883,0.000179,2]
[403663691,1769454646125,-8697.91006024,0.000179,2]
[403663692,1769454646135,-600.0,0.000179,6]
[403663693,1769454646144,-218.05616184,0.000179,2]
[403663694,1769454646154,-6267.06996004,0.000179,2]
[403663695,1769454646164,-483.70920103,0.000179,2]
[403663696,1769454646174,-222.96242774,0.000179,3]
[403663697,1769454646183,-2798.33,0.00017932,2]
[403663698,1769454646192,-294.37,0.00017973,2]
[403663699,1769454646201,-1500.0,0.0001798,2]
[403663700,1769454646211,-307.45601862,0.0001799,2]
[403663701,1769454646220,-307.45601862,0.0001799,2]
[403663702,1769454646229,-500.0,0.00017999,2]
[403663703,1769454646238,-500.0,0.00017999,2]
[403663704,1769454646247,-255.56,0.00017999,2]
[403663705,1769454646256,-266.17347274,0.00017999,2]
[403663706,1769454646266,-500.0,0.00017999,2]
[403663707,1769454646275,-4923851.38961053,0.00018,2]
[403663708,1769454646865,-502.1,0.00018,2]
[403663709,1769454646927,-483.87214513,0.00018,2]
[403663710,1769454647031,-150.00059768,0.00016235,2]
[403663711,1769454647040,-6777.96385258,0.00018,2]
[403663712,1769454647058,-4382.94454847,0.00018,2]
[403663713,1769454648329,-150.00059768,0.00017576,2]
[403663714,1769454648339,-237.32067591,0.00018,2]
[403663715,1769454648447,-311.11452737,0.00015966,2]
[403663716,1769454648459,-651.0,0.00015966,2]
[403663717,1769454648478,-264.926,0.00015966,2]
[403663718,1769454648489,-107401.87367624,0.00015966,2]
[403663719,1769454648501,-3293.75731913,0.00015966,2]
[403663720,1769454648520,-444.80969438,0.00015966,2]
[403663721,1769454648570,-9290.67953845,0.00015966,2]
[403663741,1769454804540,-341.92873577,0.00015647,2]
[403663742,1769454807215,-259.66488635,0.00015647,2]
[403663743,1769454810132,-193.73793596,0.00015647,2]
[403663744,1769454811842,-1106.26206404,0.00015647,2]
[403663747,1769454848096,3356.83271,7.945e-05,2]
[403663749,1769454893265,-10000.01,0.00015325,2]
[403663750,1769454895170,-300.0,0.00015325,2]
[403663751,1769454896694,-445.55790925,0.00015325,2]
[403663752,1769454899478,-300.0,0.00015325,2]
[403663753,1769454899557,-10000.01,0.00015325,2]
[403663754,1769454901070,-311.9700595,0.00015325,2]
[403663755,1769454903904,-220.48513553,0.00015324,2]
[403663756,1769454907237,-79.51486447,0.00015324,2]
[403663757,1769454907259,-254.36856334,0.00015324,2]
[403663758,1769454910853,-217.50417788,0.00015324,2]
[403663759,1769454914065,-209.78581975,0.00015247,2]
[403663760,1769454915557,-834.03947645,0.00015247,2]
[403663761,1769454918196,-163.83968361,0.00015247,2]
[403663762,1769455011502,-3462.526426,0.00015209,2]
[403663763,1769455011555,-250.0,0.00015286,2]
[403663764,1769455011604,-728.12725878,0.00015324,2]
[403663765,1769455011653,-300.0,0.00015324,2]
[403663766,1769455011701,-218.70263044,0.00015324,2]
[403663767,1769455011848,-81.29736956,0.00015324,2]
[403663768,1769455017285,-1826.71,0.00015291,2]
[403663769,1769455017318,-6346.59,0.00015325,2]
[403663771,1769455036053,-300.0,0.00015324,2]
[403663772,1769455036085,-195.0,0.00015325,2]
[403663773,1769455037020,-9010.01,0.00015325,2]
[403663775,1769455063123,-418.51796875,0.00015325,2]
[403663776,1769455063144,-9162.9740625,0.00015325,2]
[403663777,1769455063246,-250.0,0.00015429,2]
[403663778,1769455063273,-246.6,0.000156,2]
[403663779,1769455063302,-73.37037788,0.00015647,2]
[403663780,1769455063618,-171.087,0.00015647,2]
[403663781,1769455063649,-578.20924308,0.00015735,2]
[403663782,1769455063679,-195.0,0.00015774,2]
[403663783,1769455063707,-151.0,0.00015794,2]
[403663784,1769455063735,-151.0,0.00015815,2]
[403663785,1769455063764,-151.0,0.0001582,2]
[403663786,1769455063794,-255.0,0.00015865,2]
[403663787,1769455064058,-5555.47675808,0.00015866,2]
[403663788,1769455064096,-4662.36630213,0.00015866,2]
[403663789,1769455064124,-5337.64369787,0.00015866,2]
[403663790,1769455064138,-473.00203873,0.00015866,2]
[403663791,1769455064147,-661.66469537,0.00015866,2]
[403663792,1769455064157,-500.0,0.000159,5]
[403663793,1769455064166,-195.0,0.00015909,2]
[403663794,1769455064175,-8170.3432659,0.00015955,2]
[403663795,1769455064196,-3253.94699538,0.00015955,2]
[403663796,1769455064205,-151.0,0.00015956,2]
[403663797,1769455064214,-151.0,0.00015956,2]
[403663798,1769455064223,-695.39793187,0.00015956,2]
[403663799,1769455064232,-151.0,0.00015956,2]
[403663800,1769455064241,-274.52139242,0.00015956,2]
[403663801,1769455064249,-151.0,0.00015956,2]
[403663802,1769455064259,-151.0,0.00015956,2]
[403663803,1769455064267,-151.0,0.00015956,2]
[403663804,1769455064276,-250.0,0.00015956,2]
[403663805,1769455064285,-200.10887185,0.00015956,2]
[403663806,1769455064294,-250.0,0.00015956,2]
[403663807,1769455064303,-250.0,0.00015956,2]
[403663808,1769455064313,-500.0,0.00015956,2]
[403663809,1769455064323,-250.0,0.00015956,2]
[403663810,1769455064335,-250.0,0.00015956,2]
[403663811,1769455064345,-250.0,0.00015956,2]
[403663812,1769455064354,-2670.03480848,0.00015956,2]
[403663813,1769455064389,-3670.04480848,0.00015956,2]
[403663814,1769455064422,-992.32149365,0.00015956,2]
[403663815,1769455064436,-675.27739574,0.00015956,2]
[403663816,1769455064480,-992.32149365,0.00015956,2]
[403663817,1769455064511,-174.61919141,0.00015956,2]
[403663818,1769455064540,-250.0,0.00015956,2]
[403663819,1769455064569,-3113.21158034,0.00015956,2]
[403663820,1769455064595,-250.0,0.00015956,2]
[403663821,1769455064622,-202.09093963,0.00015956,2]
[403663822,1769455064688,-151.0,0.00015956,2]
[403663823,1769455064717,-151.0,0.00015956,2]
[403663824,1769455064744,-200.0,0.00015956,2]
[403663825,1769455064772,-151.0,0.00015956,2]
[403663826,1769455064800,-620.0,0.00015956,2]
[403663827,1769455064829,-151.0,0.00015956,2]
[403663828,1769455064858,-151.0,0.00015956,2]
[403663829,1769455064886,-151.0,0.00015956,2]
[403663830,1769455064918,-151.0,0.00015956,2]
[403663831,1769455064945,-151.0,0.00015956,2]
[403663832,1769455064974,-201.93286099,0.00015956,2]
[403663833,1769455065003,-151.0,0.00015956,2]
[403663834,1769455065031,-250.0,0.00015956,2]
[403663835,1769455065059,-151.0,0.00015956,2]
[403663836,1769455065087,-151.0,0.00015956,2]
[403663837,1769455065116,-151.0,0.00015956,2]
[403663838,1769455065143,-151.0,0.00015956,2]
[403663839,1769455065171,-151.0,0.00015956,2]
[403663840,1769455065198,-500.0,0.00015956,2]
[403663841,1769455065227,-500.0,0.00015956,2]
[403663842,1769455065254,-500.0,0.00015956,2]
[403663843,1769455065578,-500.0,0.00015956,2]
[403663844,1769455065589,-491.9413909,0.00015956,2]
[403663845,1769455065607,-250.0,0.00015956,2]
[403663846,1769455065626,-81.83769762,0.00015956,2]
[403663847,1769455065636,-120.25324201,0.00015956,2]
[403663848,1769455065650,-35.52358994,0.00015956,2]
[403663849,1769455065670,-151.0,0.00015956,2]
[403663850,1769455065689,-151.0,0.00015956,2]
[403663851,1769455065703,-42.22316805,0.00015956,2]
[403663852,1769455065713,-157.77683195,0.00015956,2]
[403663853,1769455065727,-151.0,0.00015956,2]
[403663854,1769455065745,-191.22316805,0.00015956,2]
[403663855,1769455065754,-428.77683195,0.00015956,2]
[403663856,1769455065771,-71.22316805,0.00015956,2]
[403663857,1769455065781,-79.77683195,0.00015956,2]
[403663858,1769455065797,-151.0,0.00015956,2]
[403663859,1769455065817,-151.0,0.00015956,2]
[403663860,1769455065834,-118.22316805,0.00015956,2]
[403663861,1769455065843,-32.77683195,0.00015956,2]
[403663862,1769455065857,-151.0,0.00015956,2]
[403663863,1769455065872,-201.93286099,0.00015956,2]
[403663864,1769455065889,-114.29030706,0.00015956,2]
[403663865,1769455065899,-36.70969294,0.00015956,2]
[403663866,1769455065923,-213.29030706,0.00015956,2]
[403663867,1769455065935,-36.70969294,0.00015956,2]
[403663868,1769455065948,-151.0,0.00015956,2]
[403663869,1769455065968,-134.90100706,0.00015956,2]
[403663870,1769455065978,-16.09899294,0.00015956,2]
[403663871,1769455065992,-151.0,0.00015956,2]